[Event "Teplice Open 2019"]
[Site "Teplice"]
[Date "2019.06.16"]
[Round "2.9"]
[White "Hracek, Zbynek"]
[Black "Karas, Marek"]
[Result "1-0"]
[ECO "C17"]
[WhiteElo "2582"]
[BlackElo "2268"]
[Annotator "ChessBase"]
[PlyCount "55"]
[EventDate "2019.06.15"]
[EventType "swiss"]
[EventCountry "CZE"]
[SourceTitle "playchess.com"]
[Source "ChessBase"]
[SourceQuality "1"]
[TimeControl "40/5400+30:1800+30"]

1. e4 {[%emt 0:00:00]} e6 {[%emt 0:00:00]} 2. d4 {[%emt 0:00:00]} d5 {[%emt 0:00:00]} 3. Nc3 {[%emt 0:00:00]} Bb4 {[%emt 0:00:00]} 4. e5 {[%emt 0:00:00]} c5 {[%emt 0:00:00]} 5. Bd2 {[%emt 0:00:12]} Ne7 {[%emt 0:00:57]} 6. a3 {[%emt 0:00:29]} Bxc3 {[%emt 0:00:28]} 7. Bxc3 {[%emt 0:00:01]} cxd4 {[%emt 0:02:52]} 8. Qxd4 {[%emt 0:08:44]} Nbc6 {[%emt 0:06:24]} 9. Qg4 {[%emt 0:00:38]} Nf5 {[%emt 0:02:32]} 10. Nf3 {[%emt 0:02:42]} Qb6 {[%emt 0:05:32]} 11. Bd3 {[%emt 0:01:34]} d4 {[%emt 0:08:33]} 12. Bd2 {[%emt 0:02:15]} Nce7 {[%emt 0:08:12]} 13. Bb4 {[%emt 0:15:43]} h5 {[%emt 0:08:01]} 14. Qg5 {[%emt 0:04:08]} Ng6 {[%emt 0:07:09]} 15. Bxf5 {[%emt 0:08:02]} exf5 {[%emt 0:00:16]} 16. O-O-O {[%emt 0:00:07]} a5 {[%emt 0:06:08]} 17. Bd6 {[%emt 0:00:08]} Qd8 {[%emt 0:01:49]} 18. Qxd8+ {[%emt 0:02:00]} Kxd8 {[%emt 0:00:02]} 19. Rxd4 {[%emt 0:00:08]} Ke8 {[%emt 0:01:08]} 20. Rhd1 {[%emt 0:08:13]} Be6 {[%emt 0:01:02]} 21. Ng5 {[%emt 0:03:42]} Rc8 {[%emt 0:01:45]} 22. R1d3 {[%emt 0:01:33]} b6 {[%emt 0:03:31]} 23. b4 {[%emt 0:05:59]} h4 {[%emt 0:03:25]} 24. bxa5 {[%emt 0:03:46]} bxa5 {[%emt 0:00:20]} 25. Nxe6 {[%emt 0:01:00]} fxe6 {[%emt 0:00:10]} 26. Rb3 {[%emt 0:00:03]} h3 {[%emt 0:03:15]} 27. g3 {[%emt 0:00:01]} Nf8 {[%emt 0:01:34]} 28. Ra4 {[%emt 0:06:42]} 1-0

[Event "Teplice Open 2019"]
[Site "Teplice"]
[Date "2019.06.16"]
[Round "2.11"]
[White "Epishin, Vladimir"]
[Black "Malovanyi, Yulian"]
[Result "1-0"]
[ECO "A33"]
[WhiteElo "2564"]
[BlackElo "2260"]
[Annotator "ChessBase"]
[PlyCount "73"]
[EventDate "2019.06.15"]
[EventType "swiss"]
[EventCountry "CZE"]
[SourceTitle "playchess.com"]
[Source "ChessBase"]
[SourceQuality "1"]
[TimeControl "40/5400+30:1800+30"]

1. c4 {[%emt 0:00:00]} c5 {[%emt 0:02:20]} 2. g3 {[%emt 0:00:40]} Nf6 {[%emt 0:01:33]} 3. Bg2 {[%emt 0:00:07]} e6 {[%emt 0:01:21]} 4. Nf3 {[%emt 0:00:54]} Nc6 {[%emt 0:02:50]} 5. O-O {[%emt 0:01:10]} Be7 {[%emt 0:05:36]} 6. d4 {[%emt 0:01:26]} cxd4 {[%emt 0:01:12]} 7. Nxd4 {[%emt 0:00:06]} O-O {[%emt 0:04:21]} 8. Nc3 {[%emt 0:02:14]} d5 {[%emt 0:11:25]} 9. a3 {[%emt 0:15:59]} a6 {[%emt 0:07:11]} 10. Bf4 {[%emt 0:04:31]} Na5 {[%emt 0:27:53]} 11. cxd5 {[%emt 0:03:13]} exd5 {[%emt 0:00:13]} 12. Rc1 {[%emt 0:01:28]} Bg4 {[%emt 0:04:49]} 13. h3 {[%emt 0:01:53]} Be6 {[%emt 0:00:16]} 14. e4 {[%emt 0:02:05]} dxe4 {[%emt 0:02:17]} 15. Nxe6 {[%emt 0:03:07]} fxe6 {[%emt 0:02:51]} 16. Qxd8 {[%emt 0:02:05]} Bxd8 {[%emt 0:02:30]} 17. Nxe4 {[%emt 0:02:04]} Nd5 18. Bd6 {[%emt 0:01:42]} Nb3 {[%emt 0:00:27]} 19. Rcd1 {[%emt 0:05:53]} Rc8 {[%emt 0:07:37]} 20. Bxf8 {[%emt 0:03:11]} Kxf8 {[%emt 0:00:03]} 21. Nd6 {[%emt 0:06:01]} Rc2 {[%emt 0:01:57]} 22. Be4 {[%emt 0:01:17]} Rxb2 {[%emt 0:02:16]} 23. Rb1 {[%emt 0:00:07]} Rxb1 {[%emt 0:00:45]} 24. Rxb1 {[%emt 0:00:02]} Nd2 {[%emt 0:02:07]} 25. Rxb7 {[%emt 0:02:07]} Nxe4 {[%emt 0:00:06]} 26. Nxe4 {[%emt 0:00:14]} Be7 {[%emt 0:01:46]} 27. a4 {[%emt 0:00:00]} h6 {[%emt 0:00:25]} 28. Kf1 {[%emt 0:01:15]} Ke8 {[%emt 0:00:41]} 29. Ke2 {[%emt 0:00:23]} Kd8 {[%emt 0:00:08]} 30. Rb8+ {[%emt 0:01:31]} Kc7 {[%emt 0:00:59]} 31. Rg8 {[%emt 0:00:08]} Bf6 {[%emt 0:00:09]} 32. Nxf6 {[%emt 0:01:52]} gxf6 {[%emt 0:00:08]} 33. Kd3 {[%emt 0:00:11]} Kb6 {[%emt 0:02:30]} 34. Re8 {[%emt 0:04:36]} Kc5 {[%emt 0:01:06]} 35. Rxe6 {[%emt 0:01:00]} a5 {[%emt 0:00:09]} 36. Re4 {[%emt 0:00:49]} f5 {[%emt 0:00:32]} 37. Rc4+ {[%emt 0:00:30]} 1-0

[Event "Teplice Open 2019"]
[Site "Teplice"]
[Date "2019.06.16"]
[Round "2.13"]
[White "Vorobiov, Evgeny E."]
[Black "Tuma, Jiri"]
[Result "1-0"]
[ECO "A57"]
[WhiteElo "2556"]
[BlackElo "2257"]
[Annotator "ChessBase"]
[PlyCount "23"]
[EventDate "2019.06.15"]
[EventType "swiss"]
[EventCountry "CZE"]
[SourceTitle "playchess.com"]
[Source "ChessBase"]
[SourceQuality "1"]
[TimeControl "40/5400+30:1800+30"]

1. d4 {[%emt 0:00:00]} Nf6 {[%emt 0:00:00]} 2. c4 {[%emt 0:00:00]} c5 {[%emt 0:00:25]} 3. d5 {[%emt 0:00:11]} b5 {[%emt 0:00:36]} 4. Nf3 {[%emt 0:05:14]} g6 {[%emt 0:06:27]} 5. Qc2 {[%emt 0:04:22]} Bg7 {[%emt 0:02:53]} 6. e4 {[%emt 0:00:19]} O-O {[%emt 0:05:29]} 7. cxb5 {[%emt 0:03:38]} e6 {[%emt 0:10:35]} 8. Nc3 {[%emt 0:07:54]} exd5 9. exd5 {[%emt 0:00:21]} a6 {[%emt 0:18:47]} 10. bxa6 {[%emt 0:09:40]} Re8+ {[%emt 0:15:18]} 11. Be2 {[%emt 0:01:52]} Bxa6 {[%emt 0:00:35]} 12. O-O {[%emt 0:06:13]} 1-0

[Event "Teplice Open 2019"]
[Site "Teplice"]
[Date "2019.06.16"]
[Round "2.14"]
[White "Babula, Vlastimil"]
[Black "Freisler, Pavel"]
[Result "1-0"]
[ECO "E12"]
[WhiteElo "2550"]
[BlackElo "2246"]
[Annotator "ChessBase"]
[PlyCount "55"]
[EventDate "2019.06.15"]
[EventType "swiss"]
[EventCountry "CZE"]
[SourceTitle "playchess.com"]
[Source "ChessBase"]
[SourceQuality "1"]
[TimeControl "40/5400+30:1800+30"]

1. d4 {[%emt 0:00:00]} Nf6 {[%emt 0:00:00]} 2. c4 {[%emt 0:00:00]} e6 {[%emt 0:00:00]} 3. Nf3 {[%emt 0:00:00]} b6 {[%emt 0:01:15]} 4. a3 {[%emt 0:00:22]} Bb7 {[%emt 0:00:51]} 5. Nc3 {[%emt 0:00:11]} d5 {[%emt 0:00:31]} 6. Bg5 {[%emt 0:01:07]} Be7 {[%emt 0:13:13]} 7. Qc2 {[%emt 0:01:06]} O-O {[%emt 0:06:21]} 8. e3 {[%emt 0:01:00]} Nbd7 {[%emt 0:00:37]} 9. cxd5 {[%emt 0:00:20]} exd5 {[%emt 0:05:25]} 10. Bd3 {[%emt 0:02:43]} h6 {[%emt 0:03:30]} 11. Bf4 {[%emt 0:00:51]} c5 {[%emt 0:01:37]} 12. O-O {[%emt 0:02:40]} Nh5 {[%emt 0:03:31]} 13. Be5 {[%emt 0:01:26]} Nxe5 {[%emt 0:02:20]} 14. Nxe5 {[%emt 0:09:41]} cxd4 {[%emt 0:05:05]} 15. exd4 {[%emt 0:00:23]} Nf4 {[%emt 0:00:11]} 16. Bh7+ {[%emt 0:07:50]} Kh8 {[%emt 0:00:08]} 17. Bf5 {[%emt 0:00:04]} Bd6 {[%emt 0:05:46]} 18. Rfe1 {[%emt 0:01:56]} Bc8 {[%emt 0:17:34]} 19. g3 {[%emt 0:21:54]} Bxe5 {[%emt 0:09:42]} 20. Rxe5 {[%emt 0:00:51]} f6 {[%emt 0:00:04]} 21. Re3 {[%emt 0:01:53]} Nh3+ {[%emt 0:00:08]} 22. Bxh3 {[%emt 0:12:42]} Bxh3 {[%emt 0:00:02]} 23. Rae1 {[%emt 0:00:07]} Qc8 {[%emt 0:07:53]} 24. Qg6 {[%emt 0:06:44]} Bf5 {[%emt 0:07:57]} 25. Qh5 {[%emt 0:00:11]} Bh7 {[%emt 0:00:35]} 26. Re7 {[%emt 0:03:28]} Qc4 {[%emt 0:01:26]} 27. Rxg7 {[%emt 0:02:24]} Kxg7 {[%emt 0:00:22]} 28. Re7+ {[%emt 0:00:07]} 1-0

[Event "Teplice Open 2019"]
[Site "Teplice"]
[Date "2019.06.16"]
[Round "2.17"]
[White "Svanda, Ondrej"]
[Black "Dragnev, Valentin"]
[Result "1/2-1/2"]
[ECO "C79"]
[WhiteElo "2261"]
[BlackElo "2521"]
[Annotator "ChessBase"]
[PlyCount "71"]
[EventDate "2019.06.15"]
[EventType "swiss"]
[EventCountry "CZE"]
[SourceTitle "playchess.com"]
[Source "ChessBase"]
[SourceQuality "1"]
[TimeControl "40/5400+30:1800+30"]

1. e4 {[%emt 0:00:00]} e5 {[%emt 0:00:54]} 2. Nf3 {[%emt 0:00:00]} Nc6 {[%emt 0:00:18]} 3. Bb5 {[%emt 0:00:47]} a6 {[%emt 0:02:42]} 4. Ba4 {[%emt 0:00:10]} Nf6 {[%emt 0:00:07]} 5. d3 {[%emt 0:02:14]} d6 {[%emt 0:00:48]} 6. O-O {[%emt 0:00:32]} b5 {[%emt 0:01:00]} 7. Bb3 {[%emt 0:00:06]} Na5 {[%emt 0:00:05]} 8. Re1 {[%emt 0:09:26]} Be7 {[%emt 0:02:07]} 9. c3 {[%emt 0:07:53]} Nxb3 {[%emt 0:00:07]} 10. axb3 {[%emt 0:00:52]} O-O {[%emt 0:00:43]} 11. Nbd2 {[%emt 0:00:21]} c5 {[%emt 0:12:30]} 12. Nf1 {[%emt 0:05:43]} Be6 {[%emt 0:00:54]} 13. Ng3 {[%emt 0:06:26]} h6 {[%emt 0:04:21]} 14. d4 {[%emt 0:07:07]} cxd4 {[%emt 0:04:28]} 15. cxd4 {[%emt 0:04:28]} Qc7 {[%emt 0:00:18]} 16. d5 {[%emt 0:05:43]} Bd7 {[%emt 0:01:00]} 17. Bd2 {[%emt 0:03:48]} a5 {[%emt 0:04:29]} 18. b4 {[%emt 0:04:25]} axb4 {[%emt 0:07:55]} 19. Qb3 {[%emt 0:02:46]} Qb6 {[%emt 0:09:56]} 20. h3 {[%emt 0:04:38]} Ra4 {[%emt 0:03:48]} 21. Bxb4 {[%emt 0:03:34]} Rfa8 {[%emt 0:00:28]} 22. Ra3 {[%emt 0:04:03]} Bd8 {[%emt 0:01:23]} 23. Rea1 {[%emt 0:03:58]} Ne8 {[%emt 0:04:47]} 24. Ne2 {[%emt 0:02:09]} Nc7 {[%emt 0:05:03]} 25. Nc3 {[%emt 0:02:30]} Rxa3 {[%emt 0:00:56]} 26. Rxa3 {[%emt 0:00:13]} Rxa3 {[%emt 0:00:33]} 27. Qxa3 {[%emt 0:05:57]} Na6 {[%emt 0:01:04]} 28. Nd2 {[%emt 0:01:05]} Bh4 {[%emt 0:24:57]} 29. Nd1 {[%emt 0:01:50]} Qd4 {[%emt 0:01:24]} 30. Qxa6 {[%emt 0:04:54]} Qxb4 {[%emt 0:00:01]} 31. Nf3 {[%emt 0:00:40]} Bf6 {[%emt 0:00:19]} 32. Qa7 {[%emt 0:01:42]} Qxe4 {[%emt 0:00:43]} 33. Qxd7 {[%emt 0:01:09]} Qb1 {[%emt 0:00:03]} 34. Kh2 {[%emt 0:00:43]} Qxd1 {[%emt 0:00:36]} 35. Qc8+ {[%emt 0:00:05]} Kh7 {[%emt 0:00:04]} 36. Qf5+ {[%emt 0:00:04]} 1/2-1/2

[Event "Teplice Open 2019"]
[Site "Teplice"]
[Date "2019.06.16"]
[Round "2.18"]
[White "Ali Marandi, Cemil Can"]
[Black "Horak, Jiri"]
[Result "1-0"]
[ECO "D02"]
[WhiteElo "2520"]
[BlackElo "2226"]
[Annotator "ChessBase"]
[PlyCount "81"]
[EventDate "2019.06.15"]
[EventType "swiss"]
[EventCountry "CZE"]
[SourceTitle "playchess.com"]
[Source "ChessBase"]
[SourceQuality "1"]
[TimeControl "40/5400+30:1800+30"]

1. d4 {[%emt 0:00:00]} d5 {[%emt 0:05:33]} 2. Bf4 {[%emt 0:00:00]} Nf6 {[%emt 0:00:22]} 3. e3 {[%emt 0:00:02]} a6 {[%emt 0:00:08]} 4. Nf3 {[%emt 0:02:15]} e6 {[%emt 0:00:42]} 5. Bd3 {[%emt 0:03:48]} Nbd7 {[%emt 0:01:39]} 6. Nbd2 {[%emt 0:02:54]} Nh5 {[%emt 0:05:42]} 7. Ne5 {[%emt 0:06:16]} Nxf4 {[%emt 0:00:22]} 8. exf4 {[%emt 0:00:03]} c5 {[%emt 0:04:50]} 9. Ndf3 {[%emt 0:07:19]} cxd4 {[%emt 0:03:29]} 10. O-O {[%emt 0:00:28]} Nxe5 {[%emt 0:02:39]} 11. Nxe5 {[%emt 0:02:31]} g6 {[%emt 0:04:24]} 12. Be2 {[%emt 0:12:02]} Bg7 {[%emt 0:01:30]} 13. Qxd4 {[%emt 0:00:50]} O-O {[%emt 0:00:09]} 14. Rfd1 {[%emt 0:05:37]} Qc7 {[%emt 0:11:17]} 15. c4 {[%emt 0:07:08]} dxc4 {[%emt 0:00:55]} 16. Bxc4 {[%emt 0:01:26]} b5 {[%emt 0:01:23]} 17. Bb3 {[%emt 0:01:26]} Bb7 {[%emt 0:03:26]} 18. Rac1 {[%emt 0:00:51]} Qa5 {[%emt 0:19:17]} 19. Qd7 {[%emt 0:00:29]} Bxe5 {[%emt 0:01:18]} 20. fxe5 {[%emt 0:00:07]} Be4 {[%emt 0:02:40]} 21. h4 {[%emt 0:14:36]} Rad8 {[%emt 0:07:32]} 22. Qe7 {[%emt 0:00:23]} Rfe8 {[%emt 0:01:33]} 23. Qf6 {[%emt 0:01:47]} Qb6 {[%emt 0:08:10]} 24. Qf4 {[%emt 0:02:10]} Qb7 {[%emt 0:06:33]} 25. Rxd8 {[%emt 0:04:41]} Rxd8 {[%emt 0:00:28]} 26. h5 {[%emt 0:00:06]} Bf5 {[%emt 0:05:14]} 27. Qg5 {[%emt 0:00:25]} Re8 {[%emt 0:00:47]} 28. h6 {[%emt 0:00:21]} f6 {[%emt 0:00:26]} 29. Qxf6 {[%emt 0:00:44]} Qf7 {[%emt 0:01:18]} 30. Qg5 {[%emt 0:01:27]} Qe7 {[%emt 0:00:26]} 31. Qxe7 {[%emt 0:01:08]} Rxe7 {[%emt 0:00:05]} 32. f3 {[%emt 0:00:07]} g5 {[%emt 0:00:25]} 33. g4 {[%emt 0:00:21]} Bd3 {[%emt 0:00:39]} 34. Rc6 {[%emt 0:00:16]} Kf7 {[%emt 0:00:26]} 35. Rxa6 {[%emt 0:01:12]} Bc4 {[%emt 0:00:22]} 36. Bc2 {[%emt 0:00:18]} Rd7 {[%emt 0:01:12]} 37. Rd6 {[%emt 0:01:14]} Rc7 {[%emt 0:00:31]} 38. Bxh7 {[%emt 0:00:22]} Bxa2 {[%emt 0:00:12]} 39. Bd3 {[%emt 0:01:07]} Bc4 {[%emt 0:00:38]} 40. h7 {[%emt 0:00:20]} Bxd3 {[%emt 0:00:34]} 41. h8=Q {[%emt 0:30:16]} 1-0

[Event "Teplice Open 2019"]
[Site "Teplice"]
[Date "2019.06.16"]
[Round "2.19"]
[White "Pajeken, Wolfgang"]
[Black "Greenfeld, Alon"]
[Result "0-1"]
[ECO "B38"]
[WhiteElo "2259"]
[BlackElo "2513"]
[Annotator "ChessBase"]
[PlyCount "79"]
[EventDate "2019.06.15"]
[EventType "swiss"]
[EventCountry "CZE"]
[SourceTitle "playchess.com"]
[Source "ChessBase"]
[SourceQuality "1"]
[TimeControl "40/5400+30:1800+30"]

1. Nf3 {[%emt 0:00:00]} Nf6 {[%emt 0:02:14]} 2. c4 {[%emt 0:00:00]} g6 {[%emt 0:01:50]} 3. Nc3 {[%emt 0:00:00]} Bg7 {[%emt 0:00:42]} 4. e4 {[%emt 0:00:00]} c5 {[%emt 0:00:50]} 5. d4 {[%emt 0:05:13]} cxd4 {[%emt 0:00:27]} 6. Nxd4 {[%emt 0:00:27]} d6 {[%emt 0:03:02]} 7. Be2 {[%emt 0:02:04]} O-O {[%emt 0:00:15]} 8. O-O {[%emt 0:00:57]} Nc6 {[%emt 0:00:08]} 9. Be3 {[%emt 0:04:20]} Bd7 {[%emt 0:02:37]} 10. Nc2 {[%emt 0:02:06]} Qa5 {[%emt 0:06:03]} 11. f3 {[%emt 0:02:07]} Rfc8 {[%emt 0:01:44]} 12. Qd2 {[%emt 0:01:36]} Ne5 {[%emt 0:14:43]} 13. Na3 {[%emt 0:04:34]} Be6 {[%emt 0:03:08]} 14. Nd5 {[%emt 0:03:18]} Qxd2 {[%emt 0:02:05]} 15. Bxd2 {[%emt 0:00:06]} Nxd5 {[%emt 0:00:54]} 16. cxd5 {[%emt 0:03:47]} Bd7 {[%emt 0:00:19]} 17. Rac1 {[%emt 0:02:36]} f5 {[%emt 0:05:00]} 18. h3 {[%emt 0:04:10]} fxe4 {[%emt 0:08:52]} 19. fxe4 {[%emt 0:01:07]} Nf7 {[%emt 0:01:10]} 20. Rb1 {[%emt 0:14:05]} a6 {[%emt 0:05:30]} 21. Kf2 {[%emt 0:13:53]} b5 {[%emt 0:00:59]} 22. Ke1 {[%emt 0:00:00]} Rab8 {[%emt 0:12:56]} 23. Kd1 {[%emt 0:00:00]} Ne5 {[%emt 0:00:47]} 24. b3 {[%emt 0:00:00]} Rf8 {[%emt 0:01:14]} 25. Be3 {[%emt 0:03:59]} e6 {[%emt 0:04:32]} 26. dxe6 {[%emt 0:10:05]} Bxe6 {[%emt 0:00:20]} 27. Rxf8+ {[%emt 0:02:14]} Rxf8 {[%emt 0:08:07]} 28. Nc2 {[%emt 0:02:04]} d5 {[%emt 0:04:56]} 29. Nd4 {[%emt 0:10:17]} Bf7 {[%emt 0:00:26]} 30. exd5 {[%emt 0:00:21]} Bxd5 {[%emt 0:00:00]} 31. g3 {[%emt 0:00:23]} Re8 {[%emt 0:00:00]} 32. Kd2 {[%emt 0:02:57]} Nf7 {[%emt 0:00:00]} 33. g4 {[%emt 0:07:00]} Nd6 {[%emt 0:00:00]} 34. Bf3 {[%emt 0:00:18]} Bxf3 35. Nxf3 {[%emt 0:00:01]} Ne4+ {[%emt 0:01:22]} 36. Kd3 {[%emt 0:00:26]} Nc3 {[%emt 0:00:04]} 37. Rc1 {[%emt 0:00:43]} Nxa2 {[%emt 0:00:09]} 38. Rc7 {[%emt 0:00:51]} Nb4+ {[%emt 0:00:18]} 39. Kd2 {[%emt 0:00:31]} Nd5 {[%emt 0:00:18]} 40. Ng1 {[%emt 0:00:35]} 0-1

[Event "Teplice Open 2019"]
[Site "Teplice"]
[Date "2019.06.16"]
[Round "2.22"]
[White "Pacan-Milej, Kosma"]
[Black "Janik, Igor"]
[Result "1-0"]
[ECO "E83"]
[WhiteElo "2247"]
[BlackElo "2483"]
[Annotator "ChessBase"]
[PlyCount "59"]
[EventDate "2019.06.15"]
[EventType "swiss"]
[EventCountry "CZE"]
[SourceTitle "playchess.com"]
[Source "ChessBase"]
[SourceQuality "1"]
[TimeControl "40/5400+30:1800+30"]

1. d4 {[%emt 0:00:00]} Nf6 {[%emt 0:00:00]} 2. c4 {[%emt 0:00:00]} g6 {[%emt 0:00:00]} 3. f3 {[%emt 0:00:00]} Bg7 {[%emt 0:00:25]} 4. e4 {[%emt 0:00:00]} O-O {[%emt 0:00:09]} 5. Ne2 {[%emt 0:00:00]} d6 {[%emt 0:00:14]} 6. Be3 {[%emt 0:00:04]} Nc6 {[%emt 0:00:07]} 7. Nbc3 {[%emt 0:01:48]} a6 {[%emt 0:00:04]} 8. Qd2 {[%emt 0:00:33]} Na5 {[%emt 0:00:06]} 9. Nc1 {[%emt 0:01:26]} Nd7 {[%emt 0:06:24]} 10. Nb3 {[%emt 0:09:04]} c5 {[%emt 0:03:07]} 11. Be2 {[%emt 0:10:10]} Nxb3 {[%emt 0:03:51]} 12. axb3 {[%emt 0:00:06]} cxd4 {[%emt 0:00:05]} 13. Bxd4 {[%emt 0:00:03]} Bxd4 {[%emt 0:00:08]} 14. Qxd4 {[%emt 0:00:05]} Nc5 {[%emt 0:00:04]} 15. Ra3 {[%emt 0:06:00]} e5 {[%emt 0:01:20]} 16. Qd2 {[%emt 0:07:22]} f5 {[%emt 0:19:56]} 17. O-O {[%emt 0:15:05]} fxe4 {[%emt 0:03:12]} 18. fxe4 {[%emt 0:08:06]} Rxf1+ {[%emt 0:01:20]} 19. Bxf1 {[%emt 0:00:27]} Qb6 {[%emt 0:04:32]} 20. Nd5 {[%emt 0:07:40]} Qa7 {[%emt 0:00:13]} 21. Qe3 {[%emt 0:01:12]} Kg7 {[%emt 0:04:21]} 22. b4 {[%emt 0:02:11]} Nxe4 {[%emt 0:00:07]} 23. Nb6 {[%emt 0:00:36]} Nf6 {[%emt 0:00:08]} 24. Nxa8 {[%emt 0:00:09]} Qxa8 {[%emt 0:00:05]} 25. Qb6 {[%emt 0:07:50]} Qb8 {[%emt 0:00:19]} 26. Qd8 {[%emt 0:01:24]} Qa7+ {[%emt 0:03:37]} 27. c5 {[%emt 0:01:03]} dxc5 {[%emt 0:00:36]} 28. Qe7+ {[%emt 0:00:54]} Kh6 {[%emt 0:00:02]} 29. bxc5 {[%emt 0:00:56]} Nd5 {[%emt 0:00:47]} 30. Qf8+ {[%emt 0:00:19]} 1-0

[Event "Teplice Open 2019"]
[Site "Teplice"]
[Date "2019.06.16"]
[Round "2.23"]
[White "Kraus, Tomas"]
[Black "Cholleti, Sahajasri"]
[Result "1-0"]
[ECO "B23"]
[WhiteElo "2479"]
[BlackElo "2207"]
[Annotator "ChessBase"]
[PlyCount "77"]
[EventDate "2019.06.15"]
[EventType "swiss"]
[EventCountry "CZE"]
[SourceTitle "playchess.com"]
[Source "ChessBase"]
[SourceQuality "1"]
[TimeControl "40/5400+30:1800+30"]

1. e4 {[%emt 0:00:00]} c5 {[%emt 0:00:38]} 2. Nc3 {[%emt 0:00:00]} d6 {[%emt 0:00:14]} 3. f4 {[%emt 0:00:22]} g6 {[%emt 0:04:30]} 4. Nf3 {[%emt 0:00:19]} Bg7 {[%emt 0:00:56]} 5. Bc4 {[%emt 0:00:14]} Nc6 {[%emt 0:01:45]} 6. O-O {[%emt 0:00:09]} Nf6 {[%emt 0:00:28]} 7. d3 {[%emt 0:00:11]} O-O {[%emt 0:00:26]} 8. h3 {[%emt 0:00:03]} Nd4 {[%emt 0:10:50]} 9. Be3 {[%emt 0:08:56]} Ne8 {[%emt 0:07:41]} 10. Bf2 {[%emt 0:06:14]} e6 {[%emt 0:05:38]} 11. Nxd4 {[%emt 0:01:43]} cxd4 {[%emt 0:06:49]} 12. Ne2 {[%emt 0:00:14]} e5 {[%emt 0:01:07]} 13. fxe5 {[%emt 0:08:53]} dxe5 {[%emt 0:00:17]} 14. c3 {[%emt 0:00:36]} Nc7 {[%emt 0:03:32]} 15. cxd4 {[%emt 0:01:54]} exd4 {[%emt 0:00:07]} 16. Nf4 {[%emt 0:01:35]} Be6 {[%emt 0:09:56]} 17. Nxe6 {[%emt 0:03:33]} Nxe6 {[%emt 0:00:05]} 18. Bg3 {[%emt 0:05:39]} Qe7 {[%emt 0:10:01]} 19. Rc1 {[%emt 0:04:00]} Bh6 {[%emt 0:03:20]} 20. Rc2 {[%emt 0:01:32]} Rac8 {[%emt 0:01:49]} 21. Kh1 {[%emt 0:02:50]} a6 {[%emt 0:05:27]} 22. a4 {[%emt 0:07:20]} b5 {[%emt 0:04:29]} 23. axb5 {[%emt 0:07:01]} axb5 {[%emt 0:00:03]} 24. Bd5 {[%emt 0:00:07]} Qd7 {[%emt 0:05:11]} 25. Be5 {[%emt 0:08:30]} Bg7 {[%emt 0:06:51]} 26. Bxg7 {[%emt 0:01:20]} Kxg7 {[%emt 0:00:08]} 27. Rcf2 {[%emt 0:00:19]} Qe7 {[%emt 0:07:02]} 28. Qb3 {[%emt 0:04:11]} b4 {[%emt 0:00:58]} 29. Qa2 {[%emt 0:00:04]} g5 {[%emt 0:00:57]} 30. g3 {[%emt 0:03:14]} h5 {[%emt 0:00:48]} 31. Rf5 {[%emt 0:02:02]} Qd6 {[%emt 0:02:14]} 32. e5 {[%emt 0:04:02]} Qe7 {[%emt 0:00:33]} 33. Bc4 {[%emt 0:03:00]} Nd8 {[%emt 0:00:40]} 34. b3 {[%emt 0:04:37]} Rc5 {[%emt 0:00:10]} 35. Qe2 {[%emt 0:00:17]} Rh8 {[%emt 0:01:13]} 36. Bxf7 {[%emt 0:02:41]} Nxf7 {[%emt 0:00:02]} 37. Rxf7+ {[%emt 0:00:09]} Qxf7 {[%emt 0:00:03]} 38. Rxf7+ {[%emt 0:00:06]} Kxf7 {[%emt 0:00:02]} 39. Qf3+ {[%emt 0:00:09]} 1-0

[Event "Teplice Open 2019"]
[Site "Teplice"]
[Date "2019.06.16"]
[Round "2.24"]
[White "Riha, Vojtech"]
[Black "Blohberger, Felix"]
[Result "0-1"]
[ECO "B20"]
[WhiteElo "2244"]
[BlackElo "2475"]
[Annotator "ChessBase"]
[PlyCount "46"]
[EventDate "2019.06.15"]
[EventType "swiss"]
[EventCountry "CZE"]
[SourceTitle "playchess.com"]
[Source "ChessBase"]
[SourceQuality "1"]
[TimeControl "40/5400+30:1800+30"]

1. e4 {[%emt 0:04:29]} c5 {[%emt 0:00:08]} 2. b4 {[%emt 0:00:06]} cxb4 {[%emt 0:00:19]} 3. a3 {[%emt 0:00:07]} e5 {[%emt 0:00:28]} 4. Nf3 {[%emt 0:00:18]} Nc6 {[%emt 0:00:33]} 5. Bb5 {[%emt 0:00:42]} Nf6 {[%emt 0:00:43]} 6. O-O {[%emt 0:00:54]} Nxe4 {[%emt 0:00:41]} 7. Re1 {[%emt 0:01:07]} Qb6 {[%emt 0:16:13]} 8. Rxe4 {[%emt 0:13:45]} Qxb5 {[%emt 0:00:16]} 9. axb4 {[%emt 0:06:45]} Bxb4 {[%emt 0:00:53]} 10. Nc3 {[%emt 0:05:11]} Bxc3 {[%emt 0:05:56]} 11. dxc3 {[%emt 0:00:05]} d5 {[%emt 0:12:01]} 12. c4 {[%emt 0:01:18]} dxc4 {[%emt 0:00:13]} 13. Ba3 {[%emt 0:01:54]} Be6 {[%emt 0:12:52]} 14. Nxe5 {[%emt 0:27:45]} Qd5 {[%emt 0:14:26]} 15. Qe2 {[%emt 0:15:11]} Nd4 {[%emt 0:05:02]} 16. Qe3 {[%emt 0:19:36]} Nxc2 {[%emt 0:01:39]} 17. Qg5 {[%emt 0:03:35]} Nxa3 {[%emt 0:00:16]} 18. Nxf7 {[%emt 0:00:35]} O-O {[%emt 0:06:50]} 19. Re5 {[%emt 0:00:21]} Qd4 {[%emt 0:00:17]} 20. Nh6+ {[%emt 0:00:42]} Kh8 {[%emt 0:00:06]} 21. Rf1 {[%emt 0:00:29]} gxh6 {[%emt 0:00:23]} 22. Qh5 {[%emt 0:00:33]} Bg4 {[%emt 0:00:31]} 23. Qxh6 {[%emt 0:00:30]} Qxe5 {[%emt 0:00:11]} 0-1